Workbook

Sheet Sheet1
A1: Minimum Distance from Point to Circle
B3: This DIGMath module lets you investigate
B4: the calculus problem of finding
B5: the point on the circle x2 + y2 = r2
B6: that is closest to a given point (a, b).
A9: What is radius of the circle r (from 1 to 10)?
D10: 5 | E10: =D10 -> 5 | F10: = r
A12: The particular point is at (a, b).
A13: What is a (from -5 to 10)?
D14: 11 | E14: =(D14-5)/1 -> 6 | F14: = a
A17: What is b (from -5 to 10)?
D18: 11 | E18: =(D18-5)/1 -> 6 | F18: = b
A22: Click each item below for suggestions and investigations
C23: Item 1 | K23: Select a point x0 on the circle (-r to r): | O23: =-RR+N24*dx -> 3.56 | P23: = x0
C24: Item 2 | N24: 214
C25: Item 3
K26: The corresponding height on the circle y = | O26: =SQRT(RR^2-x0^2) -> 3.511
A28: Created by: Sheldon P. Gordon | L28: The distance to the point is D = | O28: =Sheet2!J17 -> 3.485
A29: Farmingdale State College
A30: Development of this module was supported by the | K30: The value of the derivative at this point D' = | O30: =Sheet2!I21 -> 0.004
A31: NSF's Division of Undergraduate Education
A32: under grants DUE-0310123 and DUE-0442160.
K33: The formula for the distance function is:
A36: To access/download all the DIGMath Apps for Calculus
A37: Click this link: | C37: DIGMath for Calculus

Sheet Sheet2
B1: x | C1: y | D1: -y | E1: Dist L | F1: L' | H1: xMin = | I1: =-RR -> -5
H2: xMax = | I2: =RR -> 5
A3: 0 | B3: =xMin -> -5.0 | C3: =3:3 -> 0 | D3: =-C3 -> 0 | E3: =SQRT((x-a)^2+(SQRT(RR^2-x^2)-b)^2) -> 12.52996409 | F3: =(E4-E3)/dx -> -8.140793764 | H3: dx = | I3: =(xMax-xMin)/250 -> 0.04
A4: 1 | B4: =B3+dx -> -4.96 | C4: 0 | D4: =-C4 -> -0.6311893535 | E4: 12.20433234 | F4: -3.705450466
A5: 2 | B5: -4.92 | C5: 0 | D5: -0.8908422981 | E5: 12.05611432 | F5: -2.975973333 | H5: First Chart
A6: 3 | B6: -4.88 | C6: 0 | D6: -1.088852607 | E6: 11.93707538 | F6: -2.598610562 | H6: Vertical Line
A7: 4 | B7: -4.84 | C7: 0 | D7: -1.254750971 | E7: 11.83313096 | F7: -2.357662213 | I7: =x0 -> 3.56 | J7: =SQRT(RR^2-x0^2) -> 3.510897321 | K7: =J7+1 -> 4.510897321
A8: 5 | B8: -4.80 | C8: 0 | D8: -1.4 | E8: 11.73882447 | F8: -2.186688267 | I8: =a -> 6 | J8: =b -> 6
A9: 6 | B9: -4.76 | C9: 0 | D9: -1.530490118 | E9: 11.65135694 | F9: -2.05728988
A10: 7 | B10: -4.72 | C10: 0 | D10: -1.64972725 | E10: 11.56906535 | F10: -1.954985225
A11: 8 | B11: -4.68 | C11: 0 | D11: -1.76 | E11: 11.49086594 | F11: -1.871503432 | H11: Point
A12: 9 | B12: -4.64 | C12: 0 | D12: -1.862900964 | E12: 11.4160058 | F12: -1.801729038 | H12: =x0 -> 3.56 | I12: 0
A13: 10 | B13: -4.60 | C13: 0 | D13: -1.959591794 | E13: 11.34393664 | F13: -1.74230462
A14: 11 | B14: -4.56 | C14: 0 | D14: -2.050950999 | E14: 11.27424445 | F14: -1.690922688 | H14: Distance Graph
A15: 12 | B15: -4.52 | C15: 0 | D15: -2.137662275 | E15: 11.20660755 | F15: -1.645937813 | H15: Vertical Line
A16: 13 | B16: -4.48 | C16: 0 | D16: -2.220270254 | E16: 11.14077003 | F16: -1.60614072 | I16: =H21 -> 3.562 | J16: 0
A17: 14 | B17: -4.44 | C17: 0 | D17: -2.299217258 | E17: 11.07652441 | F17: -1.570620007 | I17: =H21 -> 3.562 | J17: =LOOKUP(x0,B3:B253,E3:E253) -> 3.485
A18: 15 | B18: -4.40 | C18: 0 | D18: -2.374868417 | E18: 11.01369961 | F18: -1.538673954
A19: 16 | B19: -4.36 | C19: 0 | D19: -2.447529367 | E19: 10.95215265 | F19: -1.509752288 | H19: Derivative Graph
A20: 17 | B20: -4.32 | C20: 0 | D20: -2.517459036 | E20: 10.89176256 | F20: -1.483416579 | H20: Point
A21: 18 | B21: -4.28 | C21: 0 | D21: -2.584879107 | E21: 10.83242589 | F21: -1.459312596 | H21: =x0+0.002 -> 3.562 | I21: =LOOKUP(x0,B3:B253,F3:F253) -> 0.004412783955
A22: 19 | B22: -4.24 | C22: 0 | D22: -2.649981132 | E22: 10.77405339 | F22: -1.437150594 | H22: =H21 -> 3.562 | I22: 0
A23: 20 | B23: -4.20 | C23: 0 | D23: -2.712931993 | E23: 10.71656736 | F23: -1.416690952 | H23: =H21 -> 3.562 | I23: =I21 -> 0.004412783955
A24: 21 | B24: -4.16 | C24: 0 | D24: -2.773878152 | E24: 10.65989973 | F24: -1.397733548
A25: 22 | B25: -4.12 | C25: 0 | D25: -2.832948994 | E25: 10.60399038 | F25: -1.380109759
A26: 23 | B26: -4.08 | C26: 0 | D26: -2.890259504 | E26: 10.54878599 | F26: -1.363676354
A27: 24 | B27: -4.04 | C27: 0 | D27: -2.945912422 | E27: 10.49423894 | F27: -1.34831078
A28: 25 | B28: -4.00 | C28: 0 | D28: -3 | E28: 10.44030651 | F28: -1.333907472
A29: 26 | B29: -3.96 | C29: 0 | D29: -3.052605445 | E29: 10.38695021 | F29: -1.320374939
A30: 27 | B30: -3.92 | C30: 0 | D30: -3.103804118 | E30: 10.33413521 | F30: -1.307633436
A31: 28 | B31: -3.88 | C31: 0 | D31: -3.153664535 | E31: 10.28182988 | F31: -1.295613095
A32: 29 | B32: -3.84 | C32: 0 | D32: -3.20224921 | E32: 10.23000535 | F32: -1.284252401
A33: 30 | B33: -3.80 | C33: 0 | D33: -3.249615362 | E33: 10.17863526 | F33: -1.273496948
A34: 31 | B34: -3.76 | C34: 0 | D34: -3.295815529 | E34: 10.12769538 | F34: -1.263298419
A35: 32 | B35: -3.72 | C35: 0 | D35: -3.340898083 | E35: 10.07716344 | F35: -1.253613732
A36: 33 | B36: -3.68 | C36: 0 | D36: -3.38490768 | E36: 10.02701889 | F36: -1.244404332
A37: 34 | B37: -3.64 | C37: 0 | D37: -3.427885646 | E37: 9.977242718 | F37: -1.235635595
A38: 35 | B38: -3.60 | C38: 0 | D38: -3.469870315 | E38: 9.927817294 | F38: -1.227276326
A39: 36 | B39: -3.56 | C39: 0 | D39: -3.510897321 | E39: 9.878726241 | F39: -1.219298336
A40: 37 | B40: -3.52 | C40: 0 | D40: -3.550999859 | E40: 9.829954308 | F40: -1.211676073
A41: 38 | B41: -3.48 | C41: 0 | D41: -3.590208908 | E41: 9.781487265 | F41: -1.204386316
A42: 39 | B42: -3.44 | C42: 0 | D42: -3.628553431 | E42: 9.733311812 | F42: -1.197407904
A43: 40 | B43: -3.40 | C43: 0 | D43: -3.666060556 | E43: 9.685415496 | F43: -1.190721507
A44: 41 | B44: -3.36 | C44: 0 | D44: -3.702755731 | E44: 9.637786636 | F44: -1.184309429
A45: 42 | B45: -3.32 | C45: 0 | D45: -3.738662863 | E45: 9.590414258 | F45: -1.178155425
A46: 43 | B46: -3.28 | C46: 0 | D46: -3.773804446 | E46: 9.543288041 | F46: -1.172244559
A47: 44 | B47: -3.24 | C47: 0 | D47: -3.808201675 | E47: 9.496398259 | F47: -1.166563065
A48: 45 | B48: -3.20 | C48: 0 | D48: -3.841874542 | E48: 9.449735737 | F48: -1.161098232
A49: 46 | B49: -3.16 | C49: 0 | D49: -3.874841932 | E49: 9.403291807 | F49: -1.1558383
A50: 47 | B50: -3.12 | C50: 0 | D50: -3.907121703 | E50: 9.357058275 | F50: -1.150772371
A51: 48 | B51: -3.08 | C51: 0 | D51: -3.93873076 | E51: 9.31102738 | F51: -1.145890326
A52: 49 | B52: -3.04 | C52: 0 | D52: -3.969685126 | E52: 9.265191767 | F52: -1.141182754
A53: 50 | B53: -3.00 | C53: 0 | D53: -4 | E53: 9.219544457 | F53: -1.136640889
A54: 51 | B54: -2.96 | C54: 0 | D54: -4.029689814 | E54: 9.174078822 | F54: -1.132256552
A55: 52 | B55: -2.92 | C55: 0 | D55: -4.058768286 | E55: 9.12878856 | F55: -1.128022101
A56: 53 | B56: -2.88 | C56: 0 | D56: -4.087248463 | E56: 9.083667676 | F56: -1.123930383
A57: 54 | B57: -2.84 | C57: 0 | D57: -4.115142768 | E57: 9.03871046 | F57: -1.119974696
A58: 55 | B58: -2.80 | C58: 0 | D58: -4.142463035 | E58: 8.993911472 | F58: -1.116148749
A59: 56 | B59: -2.76 | C59: 0 | D59: -4.169220551 | E59: 8.949265522 | F59: -1.112446631
A60: 57 | B60: -2.72 | C60: 0 | D60: -4.195426081 | E60: 8.904767657 | F60: -1.108862778
A61: 58 | B61: -2.68 | C61: 0 | D61: -4.221089907 | E61: 8.860413146 | F61: -1.105391947
A62: 59 | B62: -2.64 | C62: 0 | D62: -4.24622185 | E62: 8.816197468 | F62: -1.102029193
A63: 60 | B63: -2.60 | C63: 0 | D63: -4.270831301 | E63: 8.772116301 | F63: -1.098769841
A64: 61 | B64: -2.56 | C64: 0 | D64: -4.29492724 | E64: 8.728165507 | F64: -1.095609473
A65: 62 | B65: -2.52 | C65: 0 | D65: -4.318518264 | E65: 8.684341128 | F65: -1.0925439
A66: 63 | B66: -2.48 | C66: 0 | D66: -4.341612604 | E66: 8.640639372 | F66: -1.089569154
A67: 64 | B67: -2.44 | C67: =67:67 -> 0 | D67: -4.364218143 | E67: =SQRT((x-a)^2+(SQRT(RR^2-x^2)-b)^2) -> 8.597056606 | F67: =(E68-E67)/dx -> -1.086681464
A68: 65 | B68: =B67+dx -> -2.40 | C68: 0 | D68: =-C68 -> -4.38634244 | E68: 8.553589347 | F68: -1.083877248
A69: 66 | B69: -2.36 | C69: 0 | D69: -4.40799274 | E69: 8.510234257 | F69: -1.081153095
A70: 67 | B70: -2.32 | C70: 0 | D70: -4.429175996 | E70: 8.466988133 | F70: -1.078505756
A71: 68 | B71: -2.28 | C71: 0 | D71: -4.449898875 | E71: 8.423847903 | F71: -1.075932131
A72: 69 | B72: -2.24 | C72: 0 | D72: -4.470167782 | E72: 8.380810618 | F72: -1.073429257
A73: 70 | B73: -2.20 | C73: 0 | D73: -4.489988864 | E73: 8.337873448 | F73: -1.070994303
A74: 71 | B74: -2.16 | C74: 0 | D74: -4.509368027 | E74: 8.295033676 | F74: -1.068624556
A75: 72 | B75: -2.12 | C75: 0 | D75: -4.528310943 | E75: 8.252288693 | F75: -1.066317416
A76: 73 | B76: -2.08 | C76: 0 | D76: -4.546823067 | E76: 8.209635997 | F76: -1.064070388
A77: 74 | B77: -2.04 | C77: 0 | D77: -4.564909638 | E77: 8.167073181 | F77: -1.061881072
A78: 75 | B78: -2.00 | C78: 0 | D78: -4.582575695 | E78: 8.124597938 | F78: -1.05974716
A79: 76 | B79: -1.96 | C79: 0 | D79: -4.599826084 | E79: 8.082208052 | F79: -1.057666427
A80: 77 | B80: -1.92 | C80: 0 | D80: -4.616665463 | E80: 8.039901395 | F80: -1.055636727
A81: 78 | B81: -1.88 | C81: 0 | D81: -4.633098315 | E81: 7.997675926 | F81: -1.053655986
A82: 79 | B82: -1.84 | C82: 0 | D82: -4.649128951 | E82: 7.955529686 | F82: -1.051722198
A83: 80 | B83: -1.80 | C83: 0 | D83: -4.664761516 | E83: 7.913460799 | F83: -1.049833421
B84: -1.76 | C84: 0 | D84: -4.68 | E84: 7.871467462 | F84: -1.047987769
B85: -1.72 | C85: 0 | D85: -4.69484824 | E85: 7.829547951 | F85: -1.04618341
B86: -1.68 | C86: 0 | D86: -4.709309928 | E86: 7.787700615 | F86: -1.044418563
B87: -1.64 | C87: 0 | D87: -4.723388614 | E87: 7.745923872 | F87: -1.042691494
B88: -1.60 | C88: 0 | D88: -4.737087713 | E88: 7.704216212 | F88: -1.041000508
B89: -1.56 | C89: 0 | D89: -4.750410509 | E89: 7.662576192 | F89: -1.039343951
B90: -1.52 | C90: 0 | D90: -4.763360159 | E90: 7.621002434 | F90: -1.037720204
B91: -1.48 | C91: 0 | D91: -4.775939698 | E91: 7.579493626 | F91: -1.036127681
B92: -1.44 | C92: 0 | D92: -4.788152044 | E92: 7.538048519 | F92: -1.034564823
B93: -1.40 | C93: 0 | D93: -4.8 | E93: 7.496665926 | F93: -1.0330301
B94: -1.36 | C94: 0 | D94: -4.811486257 | E94: 7.455344722 | F94: -1.031522005
B95: -1.32 | C95: 0 | D95: -4.822613399 | E95: 7.414083841 | F95: -1.030039049
B96: -1.28 | C96: 0 | D96: -4.833383908 | E96: 7.372882279 | F96: -1.028579764
B97: -1.24 | C97: 0 | D97: -4.843800161 | E97: 7.331739089 | F97: -1.027142697
B98: -1.20 | C98: 0 | D98: -4.85386444 | E98: 7.290653381 | F98: -1.025726407
B99: -1.16 | C99: 0 | D99: -4.863578929 | E99: 7.249624325 | F99: -1.024329464
B100: -1.12 | C100: 0 | D100: -4.872945721 | E100: 7.208651146 | F100: -1.022950447
B101: -1.08 | C101: 0 | D101: -4.881966817 | E101: 7.167733128 | F101: -1.021587941
B102: -1.04 | C102: 0 | D102: -4.890644129 | E102: 7.126869611 | F102: -1.020240532
B103: -1.00 | C103: 0 | D103: -4.898979486 | E103: 7.086059989 | F103: -1.018906811
B104: -0.96 | C104: 0 | D104: -4.906974628 | E104: 7.045303717 | F104: -1.017585366
B105: -0.92 | C105: 0 | D105: -4.914631217 | E105: 7.004600302 | F105: -1.016274781
B106: -0.88 | C106: 0 | D106: -4.921950833 | E106: 6.963949311 | F106: -1.014973636
B107: -0.84 | C107: 0 | D107: -4.928934976 | E107: 6.923350366 | F107: -1.013680503
B108: -0.80 | C108: 0 | D108: -4.935585072 | E108: 6.882803145 | F108: -1.012393945
B109: -0.76 | C109: 0 | D109: -4.941902468 | E109: 6.842307388 | F109: -1.01111251
B110: -0.72 | C110: 0 | D110: -4.947888439 | E110: 6.801862887 | F110: -1.009834735
B111: -0.68 | C111: 0 | D111: -4.953544186 | E111: 6.761469498 | F111: -1.008559139
B112: -0.64 | C112: 0 | D112: -4.958870839 | E112: 6.721127132 | F112: -1.007284221
B113: -0.60 | C113: 0 | D113: -4.963869458 | E113: 6.680835764 | F113: -1.006008461
B114: -0.56 | C114: 0 | D114: -4.968541033 | E114: 6.640595425 | F114: -1.004730313
B115: -0.52 | C115: 0 | D115: -4.972886486 | E115: 6.600406213 | F115: -1.003448207
B116: -0.48 | C116: 0 | D116: -4.97690667 | E116: 6.560268284 | F116: -1.002160543
B117: -0.44 | C117: 0 | D117: -4.980602373 | E117: 6.520181863 | F117: -1.000865691
B118: -0.40 | C118: 0 | D118: -4.983974318 | E118: 6.480147235 | F118: -0.9995619868
B119: -0.36 | C119: 0 | D119: -4.98702316 | E119: 6.440164756 | F119: -0.9982477307
B120: -0.32 | C120: 0 | D120: -4.989749493 | E120: 6.400234846 | F120: -0.9969211835
B121: -0.28 | C121: 0 | D121: -4.992153844 | E121: 6.360357999 | F121: -0.9955805646
B122: -0.24 | C122: 0 | D122: -4.994236678 | E122: 6.320534776 | F122: -0.9942240487
B123: -0.20 | C123: 0 | D123: -4.995998399 | E123: 6.280765814 | F123: -0.9928497631
B124: -0.16 | C124: 0 | D124: -4.997439344 | E124: 6.241051824 | F124: -0.9914557846
B125: -0.12 | C125: 0 | D125: -4.998559793 | E125: 6.201393592 | F125: -0.9900401363
B126: -0.08 | C126: 0 | D126: -4.999359959 | E126: 6.161791987 | F126: -0.9886007843
B127: -0.04 | C127: 0 | D127: -4.999839997 | E127: 6.122247956 | F127: -0.9871356343
B128: 0.00 | C128: 0 | D128: -5 | E128: 6.08276253 | F128: -0.9856425284
B129: 0.04 | C129: 0 | D129: -4.999839997 | E129: 6.043336829 | F129: -0.9841192409
B130: 0.08 | C130: 0 | D130: -4.999359959 | E130: 6.00397206 | F130: -0.9825634751
B131: 0.12 | C131: =131:131 -> 0 | D131: -4.998559793 | E131: =SQRT((x-a)^2+(SQRT(RR^2-x^2)-b)^2) -> 5.964669521 | F131: =(E132-E131)/dx -> -0.9809728592
B132: =B131+dx -> 0.16 | C132: 0 | D132: =-C132 -> -4.997439344 | E132: 5.925430606 | F132: -0.9793449419
B133: 0.20 | C133: 0 | D133: -4.995998399 | E133: 5.886256808 | F133: -0.9776771886
B134: 0.24 | C134: 0 | D134: -4.994236678 | E134: 5.847149721 | F134: -0.9759669769
B135: 0.28 | C135: 0 | D135: -4.992153844 | E135: 5.808111042 | F135: -0.9742115918
B136: 0.32 | C136: 0 | D136: -4.989749493 | E136: 5.769142578 | F136: -0.9724082213
B137: 0.36 | C137: 0 | D137: -4.98702316 | E137: 5.730246249 | F137: -0.970553951
B138: 0.40 | C138: 0 | D138: -4.983974318 | E138: 5.691424091 | F138: -0.9686457593
B139: 0.44 | C139: 0 | D139: -4.980602373 | E139: 5.652678261 | F139: -0.9666805119
B140: 0.48 | C140: 0 | D140: -4.97690667 | E140: 5.61401104 | F140: -0.9646549558
B141: 0.52 | C141: 0 | D141: -4.972886486 | E141: 5.575424842 | F141: -0.9625657144
B142: 0.56 | C142: 0 | D142: -4.968541033 | E142: 5.536922214 | F142: -0.9604092802
B143: 0.60 | C143: 0 | D143: -4.963869458 | E143: 5.498505842 | F143: -0.9581820096
B144: 0.64 | C144: 0 | D144: -4.958870839 | E144: 5.460178562 | F144: -0.9558801153
B145: 0.68 | C145: 0 | D145: -4.953544186 | E145: 5.421943357 | F145: -0.9534996603
B146: 0.72 | C146: 0 | D146: -4.947888439 | E146: 5.383803371 | F146: -0.95103655
B147: 0.76 | C147: 0 | D147: -4.941902468 | E147: 5.345761909 | F147: -0.9484865252
B148: 0.80 | C148: 0 | D148: -4.935585072 | E148: 5.307822448 | F148: -0.9458451542
B149: 0.84 | C149: 0 | D149: -4.928934976 | E149: 5.269988642 | F149: -0.9431078246
B150: 0.88 | C150: 0 | D150: -4.921950833 | E150: 5.232264329 | F150: -0.9402697351
B151: 0.92 | C151: 0 | D151: -4.914631217 | E151: 5.194653539 | F151: -0.9373258868
B152: 0.96 | C152: 0 | D152: -4.906974628 | E152: 5.157160504 | F152: -0.9342710737
B153: 1.00 | C153: 0 | D153: -4.898979486 | E153: 5.119789661 | F153: -0.9310998739
B154: 1.04 | C154: 0 | D154: -4.890644129 | E154: 5.082545666 | F154: -0.9278066395
B155: 1.08 | C155: 0 | D155: -4.881966817 | E155: 5.0454334 | F155: -0.9243854865
B156: 1.12 | C156: 0 | D156: -4.872945721 | E156: 5.008457981 | F156: -0.9208302843
B157: 1.16 | C157: 0 | D157: -4.863578929 | E157: 4.97162477 | F157: -0.9171346451
B158: 1.20 | C158: 0 | D158: -4.85386444 | E158: 4.934939384 | F158: -0.9132919122
B159: 1.24 | C159: 0 | D159: -4.843800161 | E159: 4.898407707 | F159: -0.909295149
B160: 1.28 | C160: 0 | D160: -4.833383908 | E160: 4.862035901 | F160: -0.9051371268
B161: 1.32 | C161: 0 | D161: -4.822613399 | E161: 4.825830416 | F161: -0.9008103125
B162: 1.36 | C162: 0 | D162: -4.811486257 | E162: 4.789798004 | F162: -0.896306856
B163: 1.40 | C163: 0 | D163: -4.8 | E163: 4.75394573 | F163: -0.8916185776
B164: 1.44 | C164: 0 | D164: -4.788152044 | E164: 4.718280986 | F164: -0.8867369539
B165: 1.48 | C165: 0 | D165: -4.775939698 | E165: 4.682811508 | F165: -0.8816531055
B166: 1.52 | C166: 0 | D166: -4.763360159 | E166: 4.647545384 | F166: -0.8763577819
B167: 1.56 | C167: 0 | D167: -4.750410509 | E167: 4.612491073 | F167: -0.8708413486
B168: 1.60 | C168: 0 | D168: -4.737087713 | E168: 4.577657419 | F168: -0.8650937719
B169: 1.64 | C169: 0 | D169: -4.723388614 | E169: 4.543053668 | F169: -0.8591046054
B170: 1.68 | C170: 0 | D170: -4.709309928 | E170: 4.508689484 | F170: -0.852862975
B171: 1.72 | C171: 0 | D171: -4.69484824 | E171: 4.474574965 | F171: -0.8463575643
B172: 1.76 | C172: 0 | D172: -4.68 | E172: 4.440720662 | F172: -0.8395766008
B173: 1.80 | C173: 0 | D173: -4.664761516 | E173: 4.407137598 | F173: -0.8325078408
B174: 1.84 | C174: 0 | D174: -4.649128951 | E174: 4.373837285 | F174: -0.8251385555
B175: 1.88 | C175: 0 | D175: -4.633098315 | E175: 4.340831742 | F175: -0.8174555173
B176: 1.92 | C176: 0 | D176: -4.616665463 | E176: 4.308133522 | F176: -0.8094449863
B177: 1.96 | C177: 0 | D177: -4.599826084 | E177: 4.275755722 | F177: -0.801092697
B178: 2.00 | C178: 0 | D178: -4.582575695 | E178: 4.243712014 | F178: -0.7923838464
B179: 2.04 | C179: 0 | D179: -4.564909638 | E179: 4.21201666 | F179: -0.7833030822
B180: 2.08 | C180: 0 | D180: -4.546823067 | E180: 4.180684537 | F180: -0.7738344926
B181: 2.12 | C181: 0 | D181: -4.528310943 | E181: 4.149731157 | F181: -0.7639615964
B182: 2.16 | C182: 0 | D182: -4.509368027 | E182: 4.119172694 | F182: -0.7536673352
B183: 2.20 | C183: 0 | D183: -4.489988864 | E183: 4.089026 | F183: -0.7429340664
B184: 2.24 | C184: 0 | D184: -4.470167782 | E184: 4.059308638 | F184: -0.7317435587
B185: 2.28 | C185: 0 | D185: -4.449898875 | E185: 4.030038895 | F185: -0.720076988
B186: 2.32 | C186: 0 | D186: -4.429175996 | E186: 4.001235816 | F186: -0.7079149372
B187: 2.36 | C187: 0 | D187: -4.40799274 | E187: 3.972919218 | F187: -0.6952373967
B188: 2.40 | C188: 0 | D188: -4.38634244 | E188: 3.945109722 | F188: -0.6820237685
B189: 2.44 | C189: 0 | D189: -4.364218143 | E189: 3.917828772 | F189: -0.6682528716
B190: 2.48 | C190: 0 | D190: -4.341612604 | E190: 3.891098657 | F190: -0.6539029519
B191: 2.52 | C191: 0 | D191: -4.318518264 | E191: 3.864942539 | F191: -0.6389516931
B192: 2.56 | C192: 0 | D192: -4.29492724 | E192: 3.839384471 | F192: -0.6233762324
B193: 2.60 | C193: 0 | D193: -4.270831301 | E193: 3.814449422 | F193: -0.6071531778
B194: 2.64 | C194: 0 | D194: -4.24622185 | E194: 3.790163295 | F194: -0.5902586295
B195: 2.68 | C195: =195:195 -> 0 | D195: -4.221089907 | E195: =SQRT((x-a)^2+(SQRT(RR^2-x^2)-b)^2) -> 3.766552949 | F195: =(E196-E195)/dx -> -0.5726682033
B196: =B195+dx -> 2.72 | C196: 0 | D196: =-C196 -> -4.195426081 | E196: 3.743646221 | F196: -0.5543570575
B197: 2.76 | C197: 0 | D197: -4.169220551 | E197: 3.721471939 | F197: -0.5352999219
B198: 2.80 | C198: 0 | D198: -4.142463035 | E198: 3.700059942 | F198: -0.5154711288
B199: 2.84 | C199: 0 | D199: -4.115142768 | E199: 3.679441097 | F199: -0.4948446453
B200: 2.88 | C200: 0 | D200: -4.087248463 | E200: 3.659647311 | F200: -0.4733941064
... 804 more rows

Sheet Sheet3
